fUSD/lending_fUSD_20251019
["ID","MTS","AMOUNT","RATE_DAILY","PERIOD"]
[391818852,1760877778891,-280.73082209,0.00037,120]
[391818853,1760877780728,-194.09446939,0.00037,120]
[391818854,1760878085100,365.34500956,0.00034105,120]
[391818856,1760878144100,184.27,0.00013699,2]
[391818867,1760878231442,-184.27,0.00020187,2]
[391818868,1760878231452,-184.27,0.00026676,2]
[391818869,1760878231462,-184.27,0.00033165,2]
[391818870,1760878231471,-150.87207119,0.00034105,30]
[391818871,1760878231481,-510.0,0.00035,30]
[391818872,1760878231490,-477.5,0.00035087,30]
[391818873,1760878231500,-3846.7880763,0.00037,120]
[391818874,1760878231509,-300.0,0.00038999,5]
[391818875,1760878231519,-1200.0,0.00038999,5]
[391818876,1760878231528,-1864.55463301,0.00039,120]
[391818877,1760878231539,-2564.44536699,0.00039,120]
[391818878,1760878231549,-184.27,0.00039654,2]
[391818879,1760878231561,-153.93,0.00039766,2]
[391818880,1760878231576,-1000.0,0.000399,120]
[391818881,1760878231587,-1172.68990287,0.00040544,120]
[391818882,1760878231599,-255.10408829,0.00040544,120]
[391818883,1760878231617,-220.7236271,0.00040544,120]
[391818884,1760878231627,-4429.0,0.00041,120]
[391818885,1760878231636,-166.66,0.00041215,30]
[391818886,1760878231646,-255.09221066,0.00041762,2]
[391818887,1760878231655,-166.66,0.00042083,30]
[391818889,1760878231665,-196.22,0.00042672,2]
[391818890,1760878231676,-150.0,0.00042811,4]
[391818892,1760878231685,-1000.0,0.00042854,2]
[391818895,1760878231695,-912.75,0.00042865,2]
[391818896,1760878231705,-166.66,0.00042951,30]
[391818898,1760878231715,-1172.68990287,0.00042976,120]
[391818900,1760878231724,-200.0,0.00042982,2]
[391818902,1760878231737,-4429.0,0.00043,120]
[391818904,1760878231746,-1137.2,0.00043197,2]
[391818906,1760878231757,-666.0,0.00043289,20]
[391818908,1760878231773,-500.0,0.000435,10]
[391818910,1760878231782,-500.0,0.000435,10]
[391818912,1760878231791,-500.0,0.000435,2]
[391818914,1760878231800,-500.0,0.000435,10]
[391818915,1760878231809,-500.0,0.000435,10]
[391818917,1760878231818,-250.0,0.00043518,120]
[391818919,1760878231827,-500.87459369,0.00043663,5]
[391818921,1760878231836,-500.0,0.00043663,10]
[391818923,1760878231846,-500.56534583,0.00043663,10]
[391818925,1760878231855,-500.0,0.00043663,10]
[391818927,1760878231864,-500.0,0.00043663,10]
[391818931,1760878231874,-624.30168301,0.00043663,10]
[391818932,1760878231885,-500.0,0.00043663,10]
[391818934,1760878231894,-500.0,0.00043663,10]
[391818937,1760878231904,-500.0,0.00043663,10]
[391818938,1760878231913,-504.1565737,0.00043663,10]
[391818940,1760878231922,-500.0,0.00043663,10]
[391818942,1760878231932,-500.0,0.00043663,10]
[391818944,1760878231942,-1100.0,0.00043757,30]
[391818946,1760878231952,-792.47,0.00043777,2]
[391818948,1760878231962,-2108.1,0.00043799,68]
[391818951,1760878231976,-200.352,0.00043799,68]
[391818953,1760878231985,-1367.53225291,0.000438,10]
[391818955,1760878231997,-379.4773716,0.000438,10]
[391818985,1760878237426,-3530.8,0.000438,10]
[391818986,1760878237438,-640.87308337,0.000438,10]
[391818987,1760878237450,-1288.10941033,0.000438,10]
[391818988,1760878237459,-166.66,0.00043818,30]
[391818989,1760878237469,-250.0,0.00043825,7]
[391818990,1760878237480,-500.0,0.00043835,120]
[391818991,1760878237489,-500.0,0.00043835,120]
[391818992,1760878237498,-1000.0,0.00043835,120]
[391818993,1760878237508,-500.0,0.00043836,120]
[391818994,1760878237517,-526.57248585,0.00043836,120]
[391818995,1760878237526,-150.0,0.0004386,2]
[391818996,1760878237536,-200.0,0.00043879,2]
[391818997,1760878237545,-201.73,0.00044,7]
[391818998,1760878237555,-1000.0,0.00044,120]
[391818999,1760878237564,-500.0,0.00044048,10]
[391819000,1760878237573,-500.0,0.00044048,10]
[391819001,1760878237583,-500.0,0.00044048,2]
[391819002,1760878237592,-1070.95181044,0.00044048,10]
[391819004,1760878237603,-1000.0,0.000441,7]
[391819005,1760878237614,-153.93,0.00044184,2]
[391819007,1760878237624,-1100.0,0.00044208,30]
[391819009,1760878237633,-500.0,0.0004421,10]
[391819010,1760878237643,-500.0,0.0004421,10]
[391819011,1760878237653,-1500.0,0.000445,120]
[391819013,1760878237663,-1100.0,0.00044659,30]
[391819015,1760878237672,-166.66,0.00044686,30]
[391819018,1760878237688,-5000.0,0.000448,30]
[391819019,1760878237699,-1000.0,0.000448,120]
[391819020,1760878237708,-401.6017,0.0004485,2]
[391819021,1760878237716,-330.19083454,0.00044861,15]
[391819022,1760878237725,-330.1908345,0.00044876,15]
[391819023,1760878237734,-500.0,0.00044927,120]
[391819024,1760878237743,-500.0,0.00044927,120]
[391819025,1760878237752,-2500.0,0.00044936,2]
[391819026,1760878237761,-805.75932767,0.0004494,120]
[391819027,1760878237772,-4194.24067233,0.0004494,120]
[391819028,1760878237935,-229.0611416,0.00044949,28]
[391819029,1760878237944,-154.52932958,0.00044949,120]
[391819030,1760878237954,-674.51811285,0.0004495,17]
[391819031,1760878237963,-466.8441381,0.0004495,120]
[391819032,1760878237972,-1173.80330172,0.0004495,17]
[391819033,1760878237983,-3335.24072395,0.0004495,15]
[391819034,1760878237993,-168.37373473,0.0004495,15]
[391819035,1760878238002,-3224.6539,0.0004495,2]
[391819036,1760878238013,-4713.8688,0.0004495,2]
[391819037,1760878238027,-55555.0,0.0004495,60]
[391819038,1760878238037,-3335.24072392,0.00044956,15]
[391819039,1760878238047,-3335.24072392,0.00044961,15]
[391819040,1760878238056,-4083.3014936,0.00044965,2]
[391819041,1760878238066,-211.1464365,0.00044966,30]
[391819042,1760878238076,-3335.24072392,0.00044967,15]
[391819043,1760878238085,-3335.24072392,0.00044972,15]
[391819044,1760878238095,-3335.24072392,0.00044978,15]
[391819045,1760878238104,-635.5483768,0.00044978,2]
[391819046,1760878238113,-198.74779904,0.00044978,2]
[391819047,1760878238122,-217.77280709,0.00044978,2]
[391819048,1760878238132,-151.0,0.00044982,120]
[391819049,1760878238141,-3335.24072392,0.00044983,15]
[391819050,1760878238150,-8000.0,0.00044985,120]
[391819051,1760878238160,-3335.24072392,0.00044989,15]
[391819052,1760878238169,-150.0,0.0004499,120]
[391819053,1760878238179,-420.0,0.0004499,120]
[391819054,1760878238188,-179.67787569,0.0004499,120]
[391819055,1760878238197,-3335.24072392,0.00044994,15]
[391819056,1760878238207,-500.0,0.00044999,120]
[391819057,1760878238216,-500.0,0.00044999,120]
[391819058,1760878238226,-10014.63406746,0.00045,60]
[391819059,1760878238235,-4429.0,0.00045,120]
[391819060,1760878238245,-1018.0,0.00045,120]
[391819061,1760878238254,-6898.874,0.00045,30]
[391819062,1760878238264,-3335.24072392,0.00045,15]
[391819063,1760878238274,-150.0,0.00045001,2]
[391819064,1760878238284,-150.0,0.00045001,2]
[391819065,1760878238294,-200.0,0.00045001,2]
[391819066,1760878238304,-151.0,0.00045009,2]
[391819067,1760878238313,-151.0,0.00045009,2]
[391819068,1760878238323,-151.0,0.00045009,2]
[391819069,1760878238332,-151.0,0.00045009,2]
[391819070,1760878238342,-151.0,0.00045009,2]
[391819071,1760878238351,-151.0,0.00045009,2]
[391819072,1760878238360,-151.0,0.00045009,2]
[391819073,1760878238370,-151.0,0.00045009,2]
[391819074,1760878238379,-151.0,0.00045009,2]
[391819075,1760878238389,-151.0,0.00045009,2]
[391819076,1760878238398,-151.0,0.00045009,2]
[391819077,1760878238410,-151.0,0.00045009,2]
[391819078,1760878238420,-151.0,0.00045009,2]
[391819079,1760878238429,-151.0,0.00045009,2]
[391819080,1760878238439,-151.0,0.00045009,2]
[391819081,1760878238448,-151.0,0.00045009,2]
[391819082,1760878238458,-229.0611416,0.00045013,28]
[391819083,1760878238467,-18872.0113102,0.0004503,3]
[391819084,1760878238477,-204.78936605,0.00045035,120]
[391819085,1760878238487,-500.0,0.00045035,120]
[391819086,1760878238496,-500.0,0.00045035,120]
[391819087,1760878238505,-500.0,0.00045035,30]
[391819088,1760878238514,-500.0,0.00045035,120]
[391819089,1760878238523,-500.0,0.00045035,120]
[391819090,1760878238533,-13758.47871383,0.00045036,2]
[391819091,1760878238544,-56024.53275857,0.00045036,2]
[391819092,1760878238553,-500.0,0.00045038,120]
[391819093,1760878238563,-500.0,0.00045039,120]
[391819094,1760878238572,-1201.31606025,0.00045039,60]
[391819095,1760878238581,-500.0,0.00045039,120]
[391819096,1760878238590,-500.0,0.00045039,120]
[391819097,1760878238599,-500.0,0.00045039,120]
[391819098,1760878238613,-500.0,0.0004504,120]
[391819099,1760878238622,-296.17815564,0.0004504,7]
[391819100,1760878238632,-296.17815564,0.00045045,7]
[391819101,1760878238641,-151.0,0.00045047,120]
[391819102,1760878238650,-487.72729578,0.00045048,120]
[391819103,1760878238659,-847.09,0.00045048,120]
[391819104,1760878238668,-500.0,0.00045049,120]
[391819105,1760878238678,-500.0,0.00045049,120]
[391819106,1760878238692,-500.0,0.00045049,120]
[391819107,1760878238701,-500.0,0.00045049,120]
[391819108,1760878238710,-500.0,0.00045049,120]
[391819109,1760878238719,-500.0,0.00045049,120]
[391819110,1760878238728,-500.0,0.00045049,120]
[391819111,1760878238738,-500.0,0.00045049,120]
[391819112,1760878238747,-500.0,0.00045049,120]
[391819113,1760878238756,-500.0,0.00045049,120]
[391819114,1760878238765,-500.0,0.00045049,120]
[391819115,1760878238774,-500.0,0.00045049,120]
[391819116,1760878238783,-500.0,0.00045049,120]
[391819117,1760878238792,-500.0,0.00045049,120]
[391819118,1760878238802,-500.0,0.00045049,120]
[391819119,1760878238811,-500.0,0.00045049,120]
[391819120,1760878238821,-500.0,0.00045049,120]
[391819121,1760878238830,-500.0,0.00045049,120]
[391819122,1760878238839,-150.0,0.00045049,120]
[391819123,1760878238848,-500.0,0.00045049,120]
[391819124,1760878238858,-150.15898966,0.00045049,120]
[391819125,1760878238867,-160.99561592,0.00045049,120]
[391819126,1760878238876,-157.05915941,0.00045049,31]
[391819127,1760878238886,-500.0,0.00045049,120]
[391819128,1760878238895,-500.0,0.00045049,120]
[391819129,1760878238904,-500.0,0.00045049,120]
[391819130,1760878238914,-500.0,0.00045049,120]
[391819131,1760878238923,-500.0,0.00045049,120]
[391819132,1760878238932,-500.0,0.00045049,120]
[391819133,1760878238941,-500.0,0.00045049,120]
[391819134,1760878238951,-500.0,0.00045049,120]
[391819135,1760878238960,-500.0,0.00045049,120]
[391819136,1760878238969,-203.15143405,0.00045049,120]
[391819137,1760878238980,-847.09,0.00045049,120]
[391819138,1760878238989,-847.09,0.00045049,120]
[391819139,1760878238999,-847.09,0.00045049,120]
[391819140,1760878239008,-847.09,0.00045049,120]
[391819141,1760878239018,-847.09,0.00045049,120]
[391819142,1760878239027,-847.09,0.00045049,120]
[391819143,1760878239036,-847.09,0.00045049,120]
[391819144,1760878239046,-847.09,0.00045049,120]
[391819145,1760878239055,-500.0,0.00045049,120]
[391819146,1760878239069,-500.0,0.00045049,120]
[391819147,1760878239079,-500.0,0.00045049,120]
[391819148,1760878239088,-500.0,0.00045049,120]
[391819149,1760878239097,-500.0,0.00045049,120]
[391819150,1760878239107,-500.0,0.00045049,120]
[391819151,1760878239116,-500.0,0.00045049,120]
[391819152,1760878239126,-500.0,0.00045049,120]
[391819153,1760878239136,-500.0,0.00045049,120]
[391819154,1760878239145,-500.0,0.00045049,120]
[391819155,1760878239155,-500.0,0.00045049,120]
[391819156,1760878239165,-500.0,0.00045049,120]
[391819157,1760878239174,-500.0,0.00045049,120]
[391819158,1760878239193,-500.0,0.00045049,120]
[391819159,1760878239203,-356.39385226,0.00045049,120]
[391819160,1760878239212,-500.0,0.00045049,120]
[391819161,1760878239222,-500.0,0.00045049,120]
[391819162,1760878239232,-590.1,0.00045049,120]
[391819163,1760878239242,-151.0,0.00045049,120]
[391819164,1760878239252,-151.0,0.00045049,120]
[391819165,1760878239261,-185.5743002,0.00045049,120]
[391819166,1760878239271,-500.0,0.00045049,120]
[391819167,1760878239280,-500.0,0.00045049,120]
[391819168,1760878239290,-500.0,0.00045049,120]
[391819169,1760878239300,-500.0,0.00045049,120]
[391819170,1760878239309,-500.0,0.00045049,120]
[391819171,1760878239319,-500.0,0.00045049,120]
[391819173,1760878239329,-500.0,0.00045049,120]
[391819174,1760878239339,-573.10976051,0.00045049,120]
[391819175,1760878239348,-1400.0,0.0004505,7]
[391819177,1760878239358,-30777.73286778,0.0004505,31]
[391819179,1760878239372,-12786.38273899,0.0004505,31]
[391819182,1760878239383,-476.505,0.0004505,31]
[391819184,1760878239394,-1591.0580248,0.0004505,31]
[391819186,1760878239406,-3859.83934015,0.0004505,31]
[391819188,1760878239417,-793.95582152,0.0004505,31]
[391819190,1760878239429,-1121.3,0.0004505,31]
[391819191,1760878239444,-298.51436949,0.00044892,15]
[391819192,1760878239457,-31.67646501,0.00044892,15]
[391819193,1760878239466,-249.12936877,0.0004505,31]
[391819194,1760878239477,-2020.94780826,0.0004505,31]
[391819195,1760878239488,-6528.5874756,0.0004505,31]
[391819196,1760878239499,-379.15666321,0.0004505,31]
[391819197,1760878239519,-2197.82684094,0.0004505,31]
[391819198,1760878239530,-1371.10347681,0.0004505,31]
[391819200,1760878239628,-635.00413772,0.0004505,31]
[391819201,1760878239735,-212710.23506904,0.0004505,31]
[391819203,1760878239747,-366.49410161,0.0004505,31]
[391819204,1760878239760,-808.9545865,0.0004505,31]
[391819217,1760878242441,-500.0,0.00045035,120]
[391819218,1760878242451,-500.0,0.00045049,120]
[391819219,1760878242461,-587.80983891,0.0004505,31]
[391819220,1760878242493,-45238.60311399,0.0004505,31]
[391819221,1760878242502,-131276.56807835,0.0004505,120]
[391819222,1760878242512,-43012.42662396,0.0004505,120]
[391819223,1760878242523,-47800.25887638,0.0004505,120]
[391819224,1760878242550,-303.36132239,0.0004505,120]
[391819225,1760878242561,-659.73388445,0.0004505,120]
[391819226,1760878242572,-459.85570499,0.0004505,120]
[391819227,1760878242583,-397.63979402,0.0004505,120]
[391819228,1760878242594,-1814.95127278,0.0004505,120]
[391819229,1760878242609,-713.84344803,0.0004505,120]
[391819230,1760878242620,-22384.00000159,0.0004505,120]
[391819231,1760878242631,-6414.58974633,0.0004505,120]
[391819232,1760878242642,-212271.51214002,0.0004505,120]
[391819233,1760878242655,-4064.13212157,0.0004505,120]
[391819234,1760878242666,-608.80001,0.0004505,120]
[391819235,1760878242677,-538.699999,0.0004505,120]
[391819236,1760878242689,-296.42549963,0.0004505,120]
[391819237,1760878245506,-330.1908345,0.00044907,15]
[391819238,1760878245515,-796.17262097,0.0004505,120]
[391819247,1760879121528,-166.68126299,0.00032417,2]
[391819256,1760879431776,-12.80820501,0.00032417,2]
[391819257,1760879431787,-2500.0,0.00032437,120]
[391819258,1760879431797,-186.4897573,0.00032458,2]
[391819259,1760879431807,-1765.84944936,0.00032498,120]
[391819260,1760879431816,-2500.0,0.00032625,120]
[391819261,1760879431825,-500.0,0.00032823,7]
[391819263,1760879431834,-150.0,0.00032929,2]
[391819265,1760879431843,-500.0,0.0003294,7]
[391819266,1760879431852,-231.0,0.00033426,2]
[391819267,1760879431861,-216.0,0.00033485,2]
[391819268,1760879431870,-1600.0,0.00033527,3]
[391819269,1760879431879,-1763.0,0.00033528,2]
[391819270,1760879431888,-249.0,0.00033548,2]
[391819271,1760879431898,-153.0,0.00033552,2]
[391819288,1760879432071,-300.0,0.00033594,3]
[391819290,1760879432081,-1662.0,0.00033595,2]
[391819292,1760879432091,-463.0,0.00033615,2]
[391819294,1760879432100,-500.0,0.00033641,7]
[391819296,1760879432110,-633.18708376,0.00033662,2]
[391819298,1760879432119,-1956.0,0.00033681,2]
[391819300,1760879432128,-315.0,0.00033682,2]
[391819302,1760879432137,-1098.0,0.00033748,2]
[391819304,1760879432146,-308.0,0.00033749,2]
[391819306,1760879432155,-1514.0,0.00033816,2]
[391819308,1760879432164,-493.0,0.00033816,2]
[391819310,1760879432174,-1325.0,0.00033883,2]
[391819312,1760879432183,-387.0,0.00033883,2]
[391819314,1760879432192,-1742.0,0.0003395,2]
[391819316,1760879432201,-259.0,0.0003395,2]
[391819318,1760879432214,-255.2,0.00034,60]
[391819320,1760879432224,-980.0,0.00034017,2]
[391819322,1760879432233,-450.0,0.00034024,2]
[391819324,1760879432242,-501.58960617,0.00034025,5]
[391819326,1760879432251,-500.0,0.00034025,5]
[391819328,1760879432260,-500.0,0.0003408,5]
[391819330,1760879432274,-500.0,0.0003408,5]
[391819332,1760879432283,-500.0,0.0003408,5]
[391819334,1760879432292,-500.0,0.0003408,5]
[391819336,1760879432303,-500.0,0.0003408,5]
[391819338,1760879432314,-501.63024808,0.0003408,3]
[391819340,1760879432323,-1255.0,0.00034085,2]
[391819342,1760879432332,-194.621,0.00034104,37]
[391819344,1760879432343,-1936.803,0.00034104,37]
[391819346,1760879432352,-10000.0,0.00034105,30]
[391819348,1760879432361,-10000.0,0.00034105,30]
[391819350,1760879432370,-997.62,0.00034105,30]
[391819352,1760879432379,-999.3972,0.00034124,15]
[391819354,1760879432388,-1000.0,0.00034127,30]
[391819356,1760879432398,-500.0,0.000342,3]
[391819358,1760879432408,-500.0,0.000342,5]
[391819360,1760879432417,-500.0,0.00034425,5]
[391819362,1760879432426,-500.0,0.00034425,5]
[391819364,1760879432435,-500.46278913,0.00034467,5]
[391819366,1760879432444,-503.19308079,0.00034467,5]
[391819368,1760879432454,-156.70109925,0.00034467,5]
[391819370,1760879432463,-500.54370819,0.00034467,5]
[391819372,1760879432472,-172.81354459,0.00034467,5]
[391819373,1760879432481,-500.0,0.0003451,7]
[391819375,1760879432490,-475.44211287,0.00034573,5]
[391819377,1760879432499,-1000.0,0.00034628,5]
[391819379,1760879432508,-500.0,0.00034628,5]
[391819381,1760879432518,-500.0,0.00034628,5]
[391819383,1760879432528,-500.0,0.00034684,7]
[391819386,1760879432538,-1000.0,0.00034748,3]
[391819387,1760879432547,-298.55858783,0.00034748,5]
[391819389,1760879432557,-305.988,0.000349,2]
[391819391,1760879432567,-500.0,0.00034973,5]
[391819393,1760879432576,-501.17885123,0.00034973,5]
[391819395,1760879432585,-500.0,0.00035304,30]
[391819398,1760879432595,-299.99,0.00035455,30]
[391819400,1760879432604,-500.0,0.0003565,30]
[391819401,1760879432614,-2500.0,0.00035658,120]
[391819403,1760879432623,-250.0,0.00035658,2]
[391819405,1760879432632,-2500.0,0.00035658,120]
[391819407,1760879432642,-250.0,0.00035658,2]
[391819409,1760879432651,-447.45530422,0.00035838,120]
[391819411,1760879432661,-500.0,0.00036017,30]
[391819414,1760879432671,-800.0,0.00036149,3]
[391819415,1760879432680,-1500.0,0.00036658,120]
[391819417,1760879432690,-1004.13099059,0.00036662,2]
[391819419,1760879432699,-852.25,0.0003692,2]
[391819420,1760879432708,-520.28813147,0.00037342,30]
[391819421,1760879432717,-175.82428255,0.00037451,7]
[391819422,1760879432726,-500.0,0.00037764,30]
[391819423,1760879432735,-704.83434369,0.00037768,30]
[391819424,1760879432744,-1234.34,0.00037792,2]
[391819425,1760879432753,-500.0,0.00038039,30]
[391819426,1760879432762,-500.0,0.00038041,30]
[391819427,1760879432771,-753.86268529,0.00038109,30]
[391819428,1760879432780,-516.28200309,0.00038194,30]
[391819429,1760879432789,-500.0,0.00038324,30]
[391819430,1760879432798,-500.0,0.00038766,30]
[391819432,1760879432808,-167.13,0.00038913,2]
[391819434,1760879432818,-600.0,0.0003919,30]
[391819436,1760879432827,-500.0,0.00039199,30]
[391819438,1760879432835,-527.95780828,0.00039371,30]
[391819440,1760879432844,-558.91978975,0.00039571,30]
[391819442,1760879432854,-150.0,0.00040537,7]
[391819444,1760879432863,-879.51742715,0.00040544,120]
[391819445,1760879432873,-4999.81,0.00040555,2]
[391819448,1760879432882,-1397.21,0.000409,120]
[391819449,1760879432891,-2751.0,0.00041514,120]
[391819452,1760879432901,-1000.0,0.000428,7]
[391819453,1760879432911,-879.51742715,0.00042976,120]
[391819455,1760879432920,-1059.0,0.00043757,30]
[391819457,1760879432930,-171.43,0.00043949,2]
[391819459,1760879432939,-2955.97,0.0004397,2]
[391819461,1760879432948,-1059.0,0.00044208,30]
[391819463,1760879432957,-1043.92542057,0.0004458,15]
[391819465,1760879432967,-1000.0,0.0004458,2]
[391819467,1760879432976,-200.59803344,0.00044593,28]
[391819470,1760879432986,-758.28311361,0.00044612,15]
[391819472,1760879432999,-1043.92542049,0.00044624,15]
[391819474,1760879433008,-758.28311361,0.00044652,15]
[391819476,1760879433017,-1059.0,0.00044659,30]
[391819478,1760879433027,-245.83,0.00044661,14]
[391819480,1760879433036,-151.0,0.00044667,120]
[391819482,1760879433046,-1043.92542049,0.00044668,15]
[391819484,1760879433057,-13770.4280461,0.0004467,3]
[391819486,1760879433066,-797.69,0.0004467,30]
[391819488,1760879433076,-45956.27008419,0.0004467,30]
[391819490,1760879433084,-151.0,0.00044677,120]
[391819492,1760879433094,-262.5246071,0.00044679,31]
[391819494,1760879433103,-500.0,0.00044679,120]
[391819496,1760879433113,-171.11150628,0.00044679,120]
[391819498,1760879433122,-269.57741246,0.00044679,120]
[391819500,1760879433131,-583.90041595,0.00044679,120]
[391819502,1760879433141,-1000.0,0.00044679,30]
[391819504,1760879433150,-1000.0,0.00044679,30]
[391819506,1760879433159,-500.0,0.00044679,120]
[391819508,1760879433168,-500.0,0.00044679,120]
[391819510,1760879433177,-500.0,0.00044679,120]
[391819512,1760879433187,-500.0,0.00044679,30]
[391819514,1760879433196,-500.0,0.00044679,120]
[391819516,1760879433205,-500.0,0.00044679,120]
[391819518,1760879433214,-500.0,0.00044679,120]
[391819520,1760879433223,-88109.57270614,0.0004468,120]
[391819529,1760879433297,-14372.8656513,0.0004468,120]
[391819531,1760879433309,-70922.6390382,0.0004468,120]
[391819533,1760879433320,-30431.34403148,0.0004468,120]
[391819535,1760879433331,-26920.00000002,0.0004468,120]
[391819952,1760879437559,-607.84234943,0.0003957,15]
[391819954,1760879437568,-246.1645672,0.0004468,120]
[391819965,1760879437669,-553.21,0.0004468,120]
[391819967,1760879437681,-3796.2,0.0004468,120]
[391819971,1760879437724,-1144.7,0.0004468,120]
[391819972,1760879437735,-1393.36,0.0004468,120]
[391820166,1760879439664,-815.6551848,0.0004468,120]
[391820174,1760879439724,-11737.9934819,0.0004468,120]
[391820175,1760879439733,-758.28311361,0.00044693,15]
[391820176,1760879439742,-6885.21402306,0.00044702,3]
[391820177,1760879439752,-200.59803342,0.00044708,28]
[391820178,1760879439761,-1043.92542049,0.00044712,15]
[391820179,1760879439771,-758.28311361,0.00044733,15]
[391820180,1760879439780,-1043.92542049,0.00044756,15]
[391820181,1760879439790,-758.28311361,0.00044773,15]
[391820182,1760879439799,-1425.0,0.0004478,2]
[391820183,1760879439809,-150.0,0.00044786,14]
[391820184,1760879439818,-1425.0,0.00044791,2]
[391820185,1760879439827,-150.0,0.00044797,14]
[391820186,1760879439837,-1043.92542049,0.00044799,15]
[391820187,1760879439846,-1425.0,0.00044805,2]
[391820188,1760879439856,-150.0,0.0004481,14]
[391820190,1760879439865,-758.28311361,0.00044814,15]
[391820192,1760879439874,-150.0,0.00044814,14]
[391820194,1760879439883,-200.59803342,0.00044824,28]
[391820196,1760879439893,-204.17546537,0.00044834,15]
[391820198,1760879439903,-1043.92542049,0.00044843,15]
[391820200,1760879439912,-2400.98682643,0.00044844,3]
[391820202,1760879439923,-4484.22719663,0.00044844,3]
[391820204,1760879439933,-1000.0,0.00044848,14]
[391820206,1760879439942,-388.0666,0.0004485,120]
[391820208,1760879439951,-758.28311361,0.00044854,15]
[391820210,1760879439960,-150.0,0.00044873,14]
[391820213,1760879439973,-1043.92542049,0.00044887,15]
[391820214,1760879439983,-758.28311361,0.00044894,15]
[391820216,1760879439992,-1425.0,0.00044895,2]
[391820218,1760879440001,-150.0,0.00044906,14]
[391820220,1760879440012,-1000.0,0.0004492,14]
[391820222,1760879440022,-6885.21402306,0.00044929,3]
[391820225,1760879440033,-48196.4981614,0.0004493,3]
[391820227,1760879440044,-1043.92542049,0.00044931,15]
[391820229,1760879440053,-1000.0,0.00044934,14]
[391820230,1760879440063,-758.28311361,0.00044935,15]
[391820232,1760879440072,-200.59803342,0.00044939,28]
[391820234,1760879440081,-5729.00012094,0.00044939,2]
[391820236,1760879440091,-500.0,0.00044939,120]
[391820238,1760879440100,-500.0,0.00044939,120]
[391820240,1760879440109,-500.0,0.00044939,120]
[391820242,1760879440119,-500.0,0.00044939,30]
[391820244,1760879440128,-500.0,0.00044939,120]
[391820246,1760879440137,-500.0,0.00044939,120]
[391820248,1760879440147,-6885.21402306,0.00044939,3]
[391820250,1760879440156,-685.43089452,0.0004494,17]
[391820252,1760879440166,-13770.4280461,0.0004494,3]
[391820254,1760879440174,-38650.05719685,0.0004494,2]
[391820256,1760879440186,-66533.20080315,0.0004494,2]
[391820258,1760879440195,-1425.0,0.00044941,2]
[391820259,1760879440204,-500.0,0.00044949,120]
[391820260,1760879440213,-1006.93,0.00044949,30]
[391820261,1760879440222,-500.0,0.00044949,120]
[391820262,1760879440231,-513.71027546,0.00044949,120]
[391820263,1760879440240,-517.93287247,0.00044949,120]
[391820264,1760879440249,-500.0,0.00044949,120]
[391820265,1760879440258,-503.34334516,0.00044949,120]
[391820266,1760879440269,-500.0,0.00044949,120]
[391820267,1760879440279,-500.0,0.00044949,120]
[391820268,1760879440288,-500.0,0.00044949,120]
[391820269,1760879440299,-2764.0,0.00044949,7]
[391820270,1760879440308,-538.84,0.00044949,120]
[391820272,1760879440318,-500.0,0.00044949,120]
[391820274,1760879440328,-995.28,0.00044949,120]
[391820275,1760879440337,-500.0,0.00044949,120]
[391820277,1760879440349,-500.0,0.00044949,120]
[391820279,1760879440358,-5000.0,0.0004495,120]
[391820281,1760879440368,-150.0,0.0004495,14]